[Event "AUT-ch U18-Open 2025"]
[Site "Fuerstenfeld"]
[Date "2025.04.15"]
[Round "5.1"]
[White "Gruenwald, Simon"]
[Black "Balint, Peter"]
[Result "1/2-1/2"]
[Annotator "RC"]
[ECO "B90"]
[WhiteElo "2101"]
[BlackElo "2366"]
[PlyCount "81"]
[EventDate "2025.04.12"]
[EventType "swiss"]
[EventCountry "AUT"]
[SourceTitle "playchess.com"]
[Source "ChessBase"]
[SourceQuality "1"]
[TimeControl "5400+30"]

1. e4 {[%emt 0:00:56]} c5 {[%emt 0:00:16]} 2. Nf3 {[%emt 0:00:06]} d6 {[%emt 0:00:06]} 3. d4 {[%emt 0:00:03]} cxd4 {[%emt 0:00:03]} 4. Nxd4 {[%emt 0:00:05]} Nf6 {[%emt 0:00:04]} 5. Nc3 {[%emt 0:00:05]} a6 {[%emt 0:00:02]} 6. Rg1 {[%emt 0:00:07]} h5 {[%emt 0:00:06]} 7. h3 {[%emt 0:00:02]} h4 {[%emt 0:00:05]} 8. Bg5 {[%emt 0:01:22]} Nc6 {[%emt 0:00:38]} 9. Qd2 {[%emt 0:00:44]} Qb6 {[%emt 0:27:46]} 10. Nb3 {[%emt 0:15:44]} e6 {[%emt 0:00:33]} 11. O-O-O {[%emt 0:01:55]} Be7 {[%emt 0:00:42]} 12. Bd3 {[%emt 0:07:12]} Bd7 {[%emt 0:05:33]} 13. Rge1 {[%emt 0:04:16]} Qc7 {[%emt 0:14:33]} 14. f4 {[%emt 0:01:53]} O-O-O {[%emt 0:15:51]} 15. Qe2 {[%emt 0:11:05]} Be8 {[%emt 0:02:22]} 16. e5 {[%emt 0:03:40]} dxe5 {[%emt 0:00:15]} 17. fxe5 {[%emt 0:00:16]} Nd5 {[%emt 0:00:07]} 18. Bd2 {[%emt 0:01:49]} Ncb4 {[%emt 0:02:22]} 19. Nxd5 {[%emt 0:03:03]} Nxd3+ {[%emt 0:00:08]} 20. Qxd3 {[%emt 0:04:11]} Rxd5 {[%emt 0:00:14]} 21. Qc3 {[%emt 0:01:15]} Qxc3 {[%emt 0:01:26]} 22. Bxc3 {[%emt 0:00:02]} Rxd1+ {[%emt 0:00:36]} 23. Kxd1 {[%emt 0:02:22]} Bc6 {[%emt 0:01:03]} 24. Re2 {[%emt 0:00:17]} Rh5 {[%emt 0:02:13]} 25. Be1 {[%emt 0:01:25]} Bd5 {[%emt 0:03:34]} 26. c4 {[%emt 0:04:32]} Bxc4 {[%emt 0:05:58]} 27. Rc2 {[%emt 0:00:02]} b5 {[%emt 0:00:05]} 28. Nd2 {[%emt 0:00:27]} Kb7 {[%emt 0:00:43]} 29. Nxc4 {[%emt 0:00:41]} bxc4 {[%emt 0:00:05]} 30. Rxc4 {[%emt 0:00:07]} Rxe5 {[%emt 0:00:04]} 31. Bxh4 {[%emt 0:00:22]} Rd5+ {[%emt 0:00:12]} 32. Ke2 {[%emt 0:00:52]} g5 {[%emt 0:00:05]} 33. Bg3 {[%emt 0:02:58]} Bd8 {[%emt 0:00:09]} 34. h4 {[%emt 0:01:00]} gxh4 {[%emt 0:00:51]} 35. Bxh4 {[%emt 0:00:02]} Bxh4 {[%emt 0:00:34]} 36. Rxh4 {[%emt 0:33:32]} Rb5 {[%emt 0:00:09]} 37. b4 {[%emt 0:00:00]} Rg5 {[%emt 0:00:54]} 38. Kf3 {[%emt 0:00:00]} Kc6 {[%emt 0:00:03]} 39. a4 {[%emt 0:00:00]} Kd5 {[%emt 0:00:03]} 40. Rf4 {[%emt 0:00:00]} f5 {[%emt 0:00:46]} 41. g4 {[%emt 0:00:00]} 1/2-1/2

[Event "AUT-ch U18-Open 2025"]
[Site "Fuerstenfeld"]
[Date "2025.04.15"]
[Round "5.2"]
[White "Leitgeb, Julian"]
[Black "Gold, Theodor"]
[Result "1/2-1/2"]
[Annotator "RC"]
[ECO "B36"]
[WhiteElo "2313"]
[BlackElo "2066"]
[PlyCount "64"]
[EventDate "2025.04.12"]
[EventType "swiss"]
[EventCountry "AUT"]
[SourceTitle "playchess.com"]
[Source "ChessBase"]
[SourceQuality "1"]
[TimeControl "5400+30"]

1. e4 {[%emt 0:00:54]} c5 {[%emt 0:00:08]} 2. Nf3 {[%emt 0:00:12]} Nc6 {[%emt 0:00:12]} 3. d4 {[%emt 0:04:24]} cxd4 {[%emt 0:00:19]} 4. Nxd4 {[%emt 0:00:06]} g6 {[%emt 0:00:06]} 5. c4 {[%emt 0:00:19]} Nf6 {[%emt 0:00:36]} 6. Nc3 {[%emt 0:00:16]} d6 {[%emt 0:00:23]} 7. Be2 {[%emt 0:00:20]} Nxd4 {[%emt 0:00:19]} 8. Qxd4 {[%emt 0:00:02]} Bg7 {[%emt 0:00:12]} 9. Be3 {[%emt 0:01:06]} O-O {[%emt 0:00:42]} 10. Qd3 {[%emt 0:00:25]} a5 {[%emt 0:01:11]} 11. O-O {[%emt 0:02:14]} a4 {[%emt 0:00:46]} 12. Bd4 {[%emt 0:00:42]} Qa5 {[%emt 0:00:38]} 13. Rad1 {[%emt 0:01:14]} Be6 {[%emt 0:15:39]} 14. f4 {[%emt 0:01:15]} Bg4 {[%emt 0:09:48]} 15. Bxf6 {[%emt 0:25:10]} Bxe2 {[%emt 0:00:56]} 16. Qxe2 {[%emt 0:00:09]} Bxf6 {[%emt 0:00:30]} 17. Nd5 {[%emt 0:00:07]} Qc5+ {[%emt 0:12:36]} 18. Kh1 {[%emt 0:00:09]} Rfe8 {[%emt 0:10:17]} 19. Nxf6+ {[%emt 0:05:05]} exf6 {[%emt 0:00:17]} 20. Rd5 {[%emt 0:00:33]} Qc6 {[%emt 0:08:04]} 21. f5 {[%emt 0:04:18]} g5 {[%emt 0:05:57]} 22. Rfd1 {[%emt 0:06:02]} Kg7 {[%emt 0:09:33]} 23. R1d4 {[%emt 0:03:24]} Qc7 {[%emt 0:03:43]} 24. h4 {[%emt 0:13:51]} h6 {[%emt 0:05:47]} 25. Qd3 {[%emt 0:09:30]} Ra6 {[%emt 0:03:32]} 26. Kh2 {[%emt 0:03:08]} Ra5 {[%emt 0:04:14]} 27. Rxd6 {[%emt 0:06:56]} Ra6 {[%emt 0:00:19]} 28. Qg3 {[%emt 0:02:40]} Rxd6 {[%emt 0:00:39]} 29. Qxd6 {[%emt 0:00:23]} Qxd6+ {[%emt 0:00:55]} 30. Rxd6 {[%emt 0:00:02]} Rxe4 {[%emt 0:00:12]} 31. hxg5 {[%emt 0:00:07]} fxg5 {[%emt 0:03:24]} 32. b3 {[%emt 0:04:31]} Re2 {[%emt 0:01:29]} 1/2-1/2

[Event "AUT-ch U18-Open 2025"]
[Site "Fuerstenfeld"]
[Date "2025.04.15"]
[Round "5.3"]
[White "Wendl, Philipp"]
[Black "Jetzl, Julian"]
[Result "1-0"]
[Annotator "RC"]
[ECO "D70"]
[WhiteElo "2268"]
[BlackElo "2146"]
[PlyCount "67"]
[EventDate "2025.04.12"]
[EventType "swiss"]
[EventCountry "AUT"]
[SourceTitle "playchess.com"]
[Source "ChessBase"]
[SourceQuality "1"]
[TimeControl "5400+30"]

1. d4 {[%emt 0:00:12]} Nf6 {[%emt 1:31:00]} 2. c4 {[%emt 0:00:09]} g6 {[%emt 0:00:00]} 3. f3 {[%emt 0:01:07]} d5 {[%emt 0:00:00]} 4. cxd5 {[%emt 0:00:07]} Nxd5 {[%emt 0:00:00]} 5. e4 {[%emt 0:00:07]} Nb6 {[%emt 0:00:00]} 6. Nc3 {[%emt 0:00:07]} Bg7 {[%emt 0:00:00]} 7. Be3 {[%emt 0:00:10]} O-O {[%emt 0:00:00]} 8. Qd2 {[%emt 0:01:03]} Nc6 {[%emt 0:00:00]} 9. O-O-O {[%emt 0:01:00]} Qd6 {[%emt 0:00:00]} 10. Nb5 {[%emt 0:00:27]} Qd7 {[%emt 0:00:00]} 11. Bh6 {[%emt 0:00:11]} a6 {[%emt 0:00:00]} 12. Bxg7 {[%emt 0:04:04]} Kxg7 {[%emt 0:00:00]} 13. Nc3 {[%emt 0:00:06]} Rd8 {[%emt 0:00:00]} 14. d5 {[%emt 0:00:47]} Qe8 {[%emt 0:00:00]} 15. h4 {[%emt 0:03:53]} h6 {[%emt 0:00:00]} 16. h5 {[%emt 0:03:11]} g5 {[%emt 0:00:00]} 17. f4 {[%emt 0:02:42]} f6 {[%emt 0:00:00]} 18. fxg5 {[%emt 0:01:16]} hxg5 {[%emt 0:00:00]} 19. Nf3 {[%emt 0:02:52]} Kh6 {[%emt 0:00:00]} 20. Qf2 {[%emt 0:03:37]} Ne5 {[%emt 0:00:00]} 21. Nxe5 {[%emt 0:01:26]} fxe5 {[%emt 0:00:00]} 22. Be2 {[%emt 0:01:33]} Rd6 {[%emt 0:00:00]} 23. Rhf1 {[%emt 0:01:23]} Rf6 {[%emt 0:00:00]} 24. Qc5 {[%emt 0:04:21]} Qd8 {[%emt 0:00:00]} 25. d6 {[%emt 0:11:28]} Rxf1 {[%emt 0:00:00]} 26. dxe7 {[%emt 0:00:42]} Rxd1+ {[%emt 0:00:00]} 27. Bxd1 {[%emt 0:00:04]} Qe8 {[%emt 0:00:06]} 28. Qxe5 {[%emt 0:01:06]} Bd7 {[%emt 0:13:24]} 29. Qf6+ {[%emt 0:00:14]} Kh7 {[%emt 0:00:00]} 30. e5 {[%emt 0:01:11]} Ba4 {[%emt 0:00:00]} 31. Nxa4 {[%emt 0:00:52]} Nxa4 {[%emt 0:00:00]} 32. Bc2+ {[%emt 0:00:05]} Kg8 {[%emt 0:00:00]} 33. Qxg5+ {[%emt 0:00:22]} Kh8 {[%emt 0:00:00]} 34. Qh6+ {[%emt 0:00:07]} 1-0

[Event "AUT-ch U18-Open 2025"]
[Site "Fuerstenfeld"]
[Date "2025.04.15"]
[Round "5.4"]
[White "Gschiel, Alexander"]
[Black "Mangeng, Lukas"]
[Result "1-0"]
[Annotator "RC"]
[ECO "D43"]
[WhiteElo "2317"]
[BlackElo "1688"]
[PlyCount "71"]
[EventDate "2025.04.12"]
[EventType "swiss"]
[EventCountry "AUT"]
[SourceTitle "playchess.com"]
[Source "ChessBase"]
[SourceQuality "1"]
[TimeControl "5400+30"]

1. d4 {[%emt 0:00:04]} d5 {[%emt 0:00:08]} 2. Nf3 {[%emt 0:00:08]} Nf6 {[%emt 0:00:13]} 3. c4 {[%emt 0:00:15]} c6 {[%emt 0:00:09]} 4. Nc3 {[%emt 0:00:18]} e6 {[%emt 0:00:29]} 5. Qd3 {[%emt 0:00:17]} b6 {[%emt 0:01:09]} 6. e4 {[%emt 0:00:19]} Ba6 {[%emt 0:00:27]} 7. Qc2 {[%emt 0:00:49]} dxc4 {[%emt 0:00:17]} 8. Be2 {[%emt 0:01:12]} Be7 {[%emt 0:01:17]} 9. O-O {[%emt 0:00:17]} O-O {[%emt 0:02:22]} 10. Rd1 {[%emt 0:01:27]} Qc7 {[%emt 0:02:54]} 11. Bg5 {[%emt 0:06:09]} Rd8 {[%emt 0:08:42]} 12. a3 {[%emt 0:05:45]} b5 {[%emt 0:03:03]} 13. b3 {[%emt 0:04:09]} cxb3 {[%emt 0:00:57]} 14. Qxb3 {[%emt 0:00:04]} Bb7 {[%emt 0:00:29]} 15. Rac1 {[%emt 0:05:07]} Qa5 {[%emt 0:03:37]} 16. e5 {[%emt 0:02:20]} Qxa3 {[%emt 0:02:56]} 17. Qxa3 {[%emt 0:10:44]} Bxa3 {[%emt 0:00:14]} 18. exf6 {[%emt 0:00:05]} Bxc1 {[%emt 0:00:23]} 19. Rxc1 {[%emt 0:00:08]} Nd7 {[%emt 0:02:30]} 20. fxg7 {[%emt 0:00:31]} f6 {[%emt 0:00:10]} 21. Bh6 {[%emt 0:00:18]} a5 {[%emt 0:00:44]} 22. Ne4 {[%emt 0:05:38]} Ra7 {[%emt 0:03:24]} 23. Nd6 {[%emt 0:05:22]} Ba8 {[%emt 0:00:23]} 24. Bxb5 {[%emt 0:09:59]} cxb5 {[%emt 0:01:30]} 25. Rc8 {[%emt 0:00:16]} Rxc8 {[%emt 0:04:43]} 26. Nxc8 {[%emt 0:00:06]} Nb6 {[%emt 0:00:14]} 27. Nxa7 {[%emt 0:00:08]} b4 {[%emt 0:00:07]} 28. Nd2 {[%emt 0:11:18]} a4 {[%emt 0:02:47]} 29. Nb5 {[%emt 0:01:21]} Nd5 {[%emt 0:03:08]} 30. Kf1 {[%emt 0:06:16]} b3 {[%emt 0:03:59]} 31. Ke2 {[%emt 0:04:33]} Bb7 {[%emt 0:01:52]} 32. Na3 {[%emt 0:01:15]} Ba6+ {[%emt 0:01:13]} 33. Kd1 {[%emt 0:00:12]} Nc3+ {[%emt 0:01:01]} 34. Kc1 {[%emt 0:00:05]} Ne2+ {[%emt 0:00:30]} 35. Kb2 {[%emt 0:00:06]} Nxd4 {[%emt 0:00:11]} 36. Ne4 {[%emt 0:00:12]} 1-0

[Event "AUT-ch U18-Open 2025"]
[Site "Fuerstenfeld"]
[Date "2025.04.15"]
[Round "5.5"]
[White "Loretz, Jonas"]
[Black "Maier, Tobias"]
[Result "1/2-1/2"]
[Annotator "NA RC"]
[ECO "C74"]
[WhiteElo "1869"]
[BlackElo "1915"]
[PlyCount "62"]
[EventDate "2025.04.12"]
[EventType "swiss"]
[EventCountry "AUT"]
[SourceTitle "playchess.com"]
[Source "ChessBase"]
[SourceQuality "1"]
[TimeControl "5400+30"]

1. e4 {[%emt 0:00:03]} e5 {[%emt 0:01:37]} 2. Nf3 {[%emt 0:00:05]} Nc6 {[%emt 1:29:53]} 3. Bb5 {[%emt 0:00:12]} a6 {[%emt 0:00:00]} 4. Ba4 {[%emt 0:00:17]} d6 {[%emt 0:00:00]} 5. c3 {[%emt 0:00:59]} f5 {[%emt 0:00:00]} 6. d3 {[%emt 0:02:17]} fxe4 {[%emt 0:00:00]} 7. dxe4 {[%emt 0:00:44]} Bg4 {[%emt 0:00:00]} 8. Qd3 {[%emt 0:02:09]} Nf6 {[%emt 0:00:00]} 9. Nbd2 {[%emt 0:04:07]} Qd7 {[%emt 0:00:00]} 10. h3 {[%emt 0:07:38]} Be6 {[%emt 0:00:00]} 11. Nf1 {[%emt 0:11:37]} Be7 {[%emt 0:00:00]} 12. Ng3 {[%emt 0:02:33]} O-O-O {[%emt 0:00:00]} 13. Be3 {[%emt 0:08:55]} Kb8 {[%emt 0:00:00]} 14. Ng5 {[%emt 0:05:33]} d5 {[%emt 0:00:00]} 15. Nxe6 {[%emt 0:06:53]} Qxe6 {[%emt 0:00:00]} 16. Bb3 {[%emt 0:04:50]} Na5 {[%emt 0:00:00]} 17. exd5 {[%emt 0:02:41]} Nxd5 {[%emt 0:00:00]} 18. Qf5 {[%emt 0:06:06]} Qxf5 {[%emt 0:00:00]} 19. Nxf5 {[%emt 0:00:14]} Nxb3 {[%emt 0:00:00]} 20. axb3 {[%emt 0:00:30]} Bf6 {[%emt 0:00:00]} 21. Bc1 {[%emt 0:10:09]} Rd7 {[%emt 0:00:00]} 22. g3 {[%emt 0:01:43]} Rhd8 {[%emt 0:00:00]} 23. Ke2 {[%emt 0:02:23]} g6 {[%emt 0:00:00]} 24. Ne3 {[%emt 0:00:36]} Nb6 {[%emt 0:00:00]} 25. Ng4 {[%emt 0:01:03]} Bg7 {[%emt 0:03:26]} 26. Bg5 {[%emt 0:01:07]} Rf8 {[%emt 0:00:07]} 27. Rad1 {[%emt 0:02:05]} Rdf7 {[%emt 0:00:07]} 28. Rhf1 {[%emt 0:01:22]} Kc8 {[%emt 0:02:56]} 29. Be3 {[%emt 0:01:35]} Nd7 {[%emt 0:02:03]} 30. Nh6 {[%emt 0:01:34]} Bxh6 {[%emt 0:00:31]} 31. Bxh6 {[%emt 0:00:24]} Re8 {[%emt 0:00:08]} 1/2-1/2

[Event "AUT-ch U18-Open 2025"]
[Site "Fuerstenfeld"]
[Date "2025.04.15"]
[Round "5.6"]
[White "Zaytsev, Alexander"]
[Black "Pedevilla, Luis"]
[Result "1-0"]
[Annotator "RC"]
[ECO "B08"]
[WhiteElo "2178"]
[BlackElo "1925"]
[PlyCount "201"]
[EventDate "2025.04.12"]
[EventType "swiss"]
[EventCountry "AUT"]
[SourceTitle "playchess.com"]
[Source "ChessBase"]
[SourceQuality "1"]
[TimeControl "5400+30"]

1. e4 {[%emt 0:00:04]} d6 {[%emt 0:01:00]} 2. d4 {[%emt 0:00:35]} Nf6 {[%emt 0:00:07]} 3. Nc3 {[%emt 0:00:39]} g6 {[%emt 0:00:08]} 4. Nf3 {[%emt 0:03:05]} Bg7 {[%emt 0:00:07]} 5. Be2 {[%emt 0:04:00]} O-O {[%emt 0:00:40]} 6. O-O {[%emt 0:01:05]} Nc6 {[%emt 0:02:47]} 7. h3 {[%emt 0:07:35]} e5 {[%emt 0:05:30]} 8. Bg5 {[%emt 0:10:11]} exd4 {[%emt 0:04:17]} 9. Nxd4 {[%emt 0:02:09]} Nxd4 {[%emt 0:00:36]} 10. Qxd4 {[%emt 0:00:14]} Nxe4 {[%emt 0:01:48]} 11. Bxd8 {[%emt 0:19:13]} Bxd4 {[%emt 0:00:10]} 12. Bxc7 {[%emt 0:00:37]} Nxc3 {[%emt 0:07:54]} 13. bxc3 {[%emt 0:01:08]} Bxc3 {[%emt 0:01:40]} 14. Rad1 {[%emt 0:13:29]} Bb4 {[%emt 0:05:52]} 15. Bf3 {[%emt 0:05:32]} Bf5 {[%emt 0:06:10]} 16. Bxb7 {[%emt 0:28:54]} Rae8 {[%emt 0:00:12]} 17. Bxd6 {[%emt 0:00:00]} Bxd6 {[%emt 0:00:11]} 18. Rxd6 {[%emt 0:00:00]} Bxc2 {[%emt 0:00:50]} 19. Rc1 {[%emt 0:01:30]} Rb8 {[%emt 0:02:06]} 20. Bd5 {[%emt 0:00:00]} Rfd8 {[%emt 0:23:49]} 21. Rxd8+ {[%emt 0:00:00]} Rxd8 {[%emt 0:00:07]} 22. Bxf7+ {[%emt 0:00:00]} Kxf7 {[%emt 0:00:06]} 23. Rxc2 {[%emt 0:00:00]} Rd7 {[%emt 0:00:26]} 24. Kh2 {[%emt 0:00:00]} Kf6 {[%emt 0:01:13]} 25. h4 {[%emt 0:00:00]} h5 {[%emt 0:02:43]} 26. f3 {[%emt 0:00:00]} Rd5 {[%emt 0:01:39]} 27. Rc6+ {[%emt 0:00:00]} Kf5 {[%emt 0:00:35]} 28. Ra6 {[%emt 0:00:00]} Rd7 {[%emt 0:00:19]} 29. Kg3 {[%emt 0:00:00]} Rc7 {[%emt 0:00:22]} 30. Ra5+ {[%emt 0:00:00]} Kf6 {[%emt 0:00:09]} 31. Rb5 {[%emt 0:00:00]} Ke6 {[%emt 0:01:04]} 32. Kh3 {[%emt 0:00:00]} Kf6 {[%emt 0:00:28]} 33. a4 {[%emt 0:01:30]} Rc6 {[%emt 0:01:22]} 34. a5 {[%emt 0:03:18]} Ke6 {[%emt 0:00:26]} 35. g4 {[%emt 0:01:42]} hxg4+ {[%emt 0:00:11]} 36. Kxg4 {[%emt 0:00:21]} Kf6 {[%emt 0:00:57]} 37. f4 {[%emt 0:00:59]} Ra6 {[%emt 0:01:06]} 38. h5 {[%emt 0:00:40]} gxh5+ {[%emt 0:00:04]} 39. Rxh5 {[%emt 0:00:05]} Kg7 {[%emt 0:00:30]} 40. Rc5 {[%emt 0:01:05]} Kf6 {[%emt 0:00:46]} 41. Rf5+ {[%emt 0:00:05]} Kg6 {[%emt 0:00:32]} 42. Rg5+ {[%emt 0:00:06]} Kf6 {[%emt 0:00:11]} 43. Rb5 {[%emt 0:00:06]} Kg6 {[%emt 0:00:24]} 44. Rc5 {[%emt 0:00:47]} Kf6 {[%emt 0:00:24]} 45. Kf3 {[%emt 0:00:20]} Re6 {[%emt 0:00:26]} 46. Rb5 {[%emt 0:00:27]} Rc6 {[%emt 0:00:58]} 47. Rb7 {[%emt 0:00:55]} Ra6 {[%emt 0:00:07]} 48. Rb5 {[%emt 0:00:16]} Re6 {[%emt 0:01:23]} 49. Rd5 {[%emt 0:00:42]} Re7 {[%emt 0:02:33]} 50. Rd6+ {[%emt 0:01:03]} Kf5 {[%emt 0:00:07]} 51. a6 {[%emt 0:00:43]} Rc7 {[%emt 0:00:33]} 52. Rd5+ {[%emt 0:00:20]} Ke6 {[%emt 0:00:53]} 53. Rh5 {[%emt 0:00:45]} Kf6 {[%emt 0:00:31]} 54. Kg4 {[%emt 0:00:34]} Rg7+ {[%emt 0:00:14]} 55. Rg5 {[%emt 0:00:27]} Rc7 {[%emt 0:00:22]} 56. Rb5 {[%emt 0:00:33]} Rc6 {[%emt 0:00:54]} 57. Rh5 {[%emt 0:00:25]} Kg6 {[%emt 0:00:16]} 58. Ra5 {[%emt 0:00:01]} Kf6 {[%emt 0:00:21]} 59. Kf3 {[%emt 0:00:16]} Re6 {[%emt 0:01:49]} 60. Rh5 {[%emt 0:01:13]} Kg7 {[%emt 0:00:05]} 61. Ra5 {[%emt 0:00:41]} Kf6 {[%emt 0:00:12]} 62. Kg3 {[%emt 0:00:17]} Rc6 {[%emt 0:00:26]} 63. Kg4 {[%emt 0:00:16]} Rb6 {[%emt 0:00:37]} 64. Kf3 {[%emt 0:00:49]} Re6 {[%emt 0:00:21]} 65. f5 {[%emt 0:00:37]} Rc6 {[%emt 0:00:31]} 66. Ke4 {[%emt 0:00:12]} Rd6 {[%emt 0:00:16]} 67. Ra3 {[%emt 0:00:42]} Rb6 {[%emt 0:01:09]} 68. Rh3 {[%emt 0:00:37]} Kg7 {[%emt 0:00:24]} 69. Rg3+ {[%emt 0:00:26]} Kf7 {[%emt 0:00:17]} 70. Ra3 {[%emt 0:00:17]} Kf6 {[%emt 0:00:08]} 71. Ra4 {[%emt 0:00:13]} Rd6 {[%emt 0:00:16]} 72. Ra5 {[%emt 0:00:18]} Rd7 {[%emt 0:00:42]} 73. Rb5 {[%emt 0:01:17]} Rd6 {[%emt 0:00:07]} 74. Ra5 {[%emt 0:00:08]} Rd7 {[%emt 0:00:07]} 75. Ra2 {[%emt 0:00:34]} Rd6 {[%emt 0:00:13]} 76. Rg2 {[%emt 0:00:44]} Kf7 {[%emt 0:00:15]} 77. Ra2 {[%emt 0:00:08]} Kf6 {[%emt 0:00:06]} 78. Ra1 {[%emt 0:00:26]} Rb6 {[%emt 0:01:21]} 79. Rh1 {[%emt 0:00:57]} Kg7 {[%emt 0:00:15]} 80. Ke5 {[%emt 0:00:32]} Rxa6 {[%emt 0:00:23]} 81. Rc1 {[%emt 0:00:13]} Ra5+ {[%emt 0:00:41]} 82. Ke6 {[%emt 0:00:09]} Rb5 {[%emt 0:05:03]} 83. Rc7+ {[%emt 0:01:01]} Kg8 {[%emt 0:03:18]} 84. Rc8+ {[%emt 0:00:03]} Kh7 {[%emt 0:00:11]} 85. Rc7+ {[%emt 0:00:59]} Kg8 {[%emt 0:00:06]} 86. f6 {[%emt 0:00:25]} Rb8 {[%emt 0:00:34]} 87. Rxa7 {[%emt 0:00:37]} Re8+ {[%emt 0:01:58]} 88. Re7 {[%emt 0:00:19]} Rf8 {[%emt 0:00:11]} 89. Rg7+ {[%emt 0:00:29]} Kh8 {[%emt 0:00:06]} 90. Rg4 {[%emt 0:00:45]} Kh7 {[%emt 0:01:47]} 91. Rh4+ {[%emt 0:00:31]} Kg6 {[%emt 0:00:35]} 92. Rg4+ {[%emt 0:00:05]} Kh7 {[%emt 0:00:17]} 93. Rg7+ {[%emt 0:00:33]} Kh8 {[%emt 0:00:17]} 94. Rd7 {[%emt 0:00:49]} Kg8 {[%emt 0:00:18]} 95. Re7 {[%emt 0:01:07]} Ra8 {[%emt 0:00:37]} 96. Rb7 {[%emt 0:00:00]} Rf8 {[%emt 0:00:35]} 97. Kf5 {[%emt 0:00:24]} Rc8 {[%emt 0:04:11]} 98. Kg6 {[%emt 0:00:22]} Rf8 {[%emt 0:00:32]} 99. f7+ {[%emt 0:00:38]} Kh8 {[%emt 0:00:21]} 100. Rb5 {[%emt 0:00:17]} Rxf7 {[%emt 0:00:20]} 101. Kxf7 {[%emt 0:00:06]} 1-0

[Event "AUT-ch U18-Open 2025"]
[Site "Fuerstenfeld"]
[Date "2025.04.15"]
[Round "5.7"]
[White "Fitz, Jonathan David"]
[Black "Hake, Nils"]
[Result "1/2-1/2"]
[Annotator "NA RC"]
[ECO "E11"]
[WhiteElo "1918"]
[BlackElo "2054"]
[PlyCount "61"]
[EventDate "2025.04.12"]
[EventType "swiss"]
[EventCountry "AUT"]
[SourceTitle "playchess.com"]
[Source "ChessBase"]
[SourceQuality "1"]
[TimeControl "5400+30"]

1. d4 {[%emt 0:00:03]} Nf6 {[%emt 0:00:09]} 2. c4 {[%emt 0:00:05]} e6 {[%emt 0:00:04]} 3. Nf3 {[%emt 0:00:15]} d5 {[%emt 0:00:14]} 4. g3 {[%emt 0:00:09]} Bb4+ {[%emt 0:00:27]} 5. Bd2 {[%emt 0:00:09]} a5 {[%emt 0:00:06]} 6. a3 {[%emt 0:01:46]} Be7 {[%emt 0:00:16]} 7. Bg2 {[%emt 0:01:06]} O-O {[%emt 0:00:20]} 8. Qc2 {[%emt 0:00:34]} c6 {[%emt 0:00:18]} 9. O-O {[%emt 0:00:17]} b6 {[%emt 0:00:16]} 10. Bf4 {[%emt 0:01:21]} Bb7 {[%emt 0:04:20]} 11. Nbd2 {[%emt 0:01:21]} Nbd7 {[%emt 0:00:51]} 12. e4 {[%emt 0:02:13]} dxc4 {[%emt 0:07:13]} 13. Nxc4 {[%emt 0:00:53]} c5 {[%emt 0:00:38]} 14. Rfe1 {[%emt 0:04:29]} cxd4 {[%emt 0:01:42]} 15. Nxd4 {[%emt 0:09:20]} Rc8 {[%emt 0:01:18]} 16. Nb5 {[%emt 0:05:18]} Ba6 {[%emt 0:03:19]} 17. a4 {[%emt 0:01:13]} e5 {[%emt 0:03:58]} 18. Bd2 {[%emt 0:03:29]} Bc5 {[%emt 0:27:06]} 19. Bh3 {[%emt 0:07:14]} Qe7 {[%emt 0:01:07]} 20. Bg5 {[%emt 0:02:08]} Rfd8 {[%emt 0:05:26]} 21. Rad1 {[%emt 0:04:02]} Bxb5 {[%emt 0:06:45]} 22. axb5 {[%emt 0:00:07]} Bd4 {[%emt 0:00:54]} 23. b3 {[%emt 0:03:13]} h6 {[%emt 0:01:09]} 24. Be3 {[%emt 0:08:46]} Qc5 {[%emt 0:08:10]} 25. Qb1 {[%emt 0:02:21]} Rb8 {[%emt 0:02:01]} 26. Bxd4 {[%emt 0:00:29]} exd4 {[%emt 0:00:07]} 27. e5 {[%emt 0:03:02]} Nd5 {[%emt 0:01:17]} 28. e6 {[%emt 0:02:01]} fxe6 {[%emt 0:00:32]} 29. Bxe6+ {[%emt 0:00:09]} Kh8 {[%emt 0:00:27]} 30. Bxd7 {[%emt 0:11:01]} Rxd7 {[%emt 0:00:41]} 31. Ne5 {[%emt 0:00:11]} 1/2-1/2

[Event "AUT-ch U18-Open 2025"]
[Site "Fuerstenfeld"]
[Date "2025.04.15"]
[Round "5.8"]
[White "Daemon, Clemens"]
[Black "Hengl, Philip"]
[Result "1/2-1/2"]
[Annotator "RC"]
[ECO "C00"]
[WhiteElo "1965"]
[BlackElo "2205"]
[PlyCount "85"]
[EventDate "2025.04.12"]
[EventType "swiss"]
[EventCountry "AUT"]
[SourceTitle "playchess.com"]
[Source "ChessBase"]
[SourceQuality "1"]
[TimeControl "5400+30"]

1. e4 {[%emt 0:00:04]} e6 {[%emt 0:00:05]} 2. b3 {[%emt 0:00:38]} d5 {[%emt 0:01:11]} 3. Bb2 {[%emt 0:00:07]} Nc6 {[%emt 0:00:06]} 4. e5 {[%emt 0:01:33]} Bd7 {[%emt 0:07:42]} 5. d4 {[%emt 0:01:00]} Nge7 {[%emt 0:08:10]} 6. Nf3 {[%emt 0:03:29]} Nf5 {[%emt 0:01:00]} 7. c3 {[%emt 0:04:17]} Be7 {[%emt 0:04:04]} 8. Bd3 {[%emt 0:00:23]} h5 {[%emt 0:03:11]} 9. Nbd2 {[%emt 0:04:32]} g5 {[%emt 0:01:30]} 10. h3 {[%emt 0:00:55]} Rg8 {[%emt 0:08:50]} 11. g4 {[%emt 0:07:29]} hxg4 {[%emt 0:00:23]} 12. hxg4 {[%emt 0:00:05]} Nh4 {[%emt 0:00:31]} 13. Nxh4 {[%emt 0:00:30]} gxh4 {[%emt 0:00:02]} 14. f4 {[%emt 0:01:11]} Bf8 {[%emt 0:07:59]} 15. g5 {[%emt 0:03:32]} Ne7 {[%emt 0:00:34]} 16. Rxh4 {[%emt 0:01:07]} Ng6 {[%emt 0:00:00]} 17. Bxg6 {[%emt 0:00:54]} fxg6 {[%emt 0:00:04]} 18. Nf3 {[%emt 0:02:24]} Qe7 {[%emt 0:01:43]} 19. Nh2 {[%emt 0:02:28]} O-O-O {[%emt 0:00:32]} 20. Ng4 {[%emt 0:01:16]} Bg7 {[%emt 0:00:07]} 21. Qf3 {[%emt 0:02:03]} Rh8 {[%emt 0:01:02]} 22. Rxh8 {[%emt 0:01:46]} Rxh8 {[%emt 0:00:01]} 23. O-O-O {[%emt 0:00:20]} Be8 {[%emt 0:01:19]} 24. Rh1 {[%emt 0:01:00]} Qf8 {[%emt 0:00:14]} 25. Nf6 {[%emt 0:03:32]} Bf7 {[%emt 0:03:08]} 26. Kb1 {[%emt 0:05:45]} Bxf6 {[%emt 0:00:50]} 27. gxf6 {[%emt 0:01:52]} Rh6 {[%emt 0:00:37]} 28. Bc1 {[%emt 0:01:49]} Qh8 {[%emt 0:07:25]} 29. Rxh6 {[%emt 0:07:29]} Qxh6 {[%emt 0:00:07]} 30. f5 {[%emt 0:02:13]} Qh5 {[%emt 0:00:05]} 31. Qxh5 {[%emt 0:00:39]} gxh5 {[%emt 0:00:08]} 32. fxe6 {[%emt 0:00:15]} Bxe6 {[%emt 0:00:05]} 33. Kc2 {[%emt 0:01:37]} Kd7 {[%emt 0:00:35]} 34. Kd3 {[%emt 0:00:32]} h4 {[%emt 0:01:02]} 35. Bf4 {[%emt 0:02:45]} c6 {[%emt 0:00:26]} 36. a3 {[%emt 0:03:04]} Bf5+ {[%emt 0:00:15]} 37. Ke3 {[%emt 0:01:18]} Ke6 {[%emt 0:00:06]} 38. Kf3 {[%emt 0:01:19]} Bc2 {[%emt 0:00:18]} 39. b4 {[%emt 0:00:35]} Bd1+ {[%emt 0:00:07]} 40. Kg2 {[%emt 0:00:43]} Bg4 {[%emt 0:00:49]} 41. Bg5 {[%emt 0:01:54]} h3+ {[%emt 0:00:07]} 42. Kg3 {[%emt 0:00:41]} Kf7 {[%emt 0:45:00]} 43. Bf4 1/2-1/2